fUST/lending_fUST_20250709
["ID","MTS","AMOUNT","RATE_DAILY","PERIOD"]
[370617080,1752076254630,-460.0,0.00019178,2]
[370617082,1752076254639,-460.0,0.00019178,2]
[370617083,1752076254649,-460.0,0.00019178,2]
[370617085,1752076254658,-498.33,0.00019178,2]
[370617087,1752076254668,-308.63396399,0.00019178,2]
[370617089,1752076254678,-158.14412584,0.00019178,2]
[370617091,1752076254688,-1667.2,0.00019178,2]
[370617093,1752076254698,-460.0,0.00019178,2]
[370617095,1752076254708,-460.0,0.00019178,2]
[370617097,1752076254718,-460.0,0.00019178,2]
[370617099,1752076254728,-460.0,0.00019178,2]
[370617101,1752076254739,-460.0,0.00019178,2]
[370617103,1752076254748,-707.29,0.00019178,2]
[370617105,1752076254757,-573.36733989,0.00019178,2]
[370617107,1752076254767,-460.0,0.00019178,2]
[370617109,1752076254776,-460.0,0.00019178,2]
[370617111,1752076254786,-460.0,0.00019178,2]
[370617113,1752076254795,-460.0,0.00019178,2]
[370617115,1752076254805,-927.13,0.00019178,2]
[370617117,1752076254814,-460.0,0.00019178,2]
[370617119,1752076254824,-3659.14,0.00019178,2]
[370617121,1752076254835,-460.0,0.00019178,2]
[370617123,1752076254845,-460.0,0.00019178,2]
[370617125,1752076254855,-460.0,0.00019178,2]
[370617127,1752076254865,-576.63,0.00019178,2]
[370617129,1752076254875,-510.95,0.00019178,2]
[370617131,1752076254884,-460.0,0.00019178,2]
[370617133,1752076254896,-460.0,0.00019178,2]
[370617135,1752076254906,-460.0,0.00019178,2]
[370617137,1752076254915,-460.0,0.00019178,2]
[370617139,1752076254925,-460.0,0.00019178,2]
[370617141,1752076254935,-460.0,0.00019178,2]
[370617143,1752076254944,-460.0,0.00019178,2]
[370617145,1752076254954,-780.69,0.00019178,2]
[370617147,1752076254964,-500.0,0.00019178,2]
[370617149,1752076254973,-746.23,0.00019178,2]
[370617151,1752076254983,-460.0,0.00019178,2]
[370617153,1752076254993,-586.85163585,0.00019178,2]
[370617155,1752076255003,-394.41435886,0.00019178,2]
[370617157,1752076255013,-3213.06,0.00019178,2]
[370617159,1752076255022,-460.0,0.00019178,2]
[370617161,1752076255032,-460.0,0.00019178,2]
[370617163,1752076255042,-460.0,0.00019178,2]
[370617165,1752076255052,-460.0,0.00019178,2]
[370617167,1752076255062,-7633.1,0.00019178,2]
[370617169,1752076255072,-460.0,0.00019178,2]
[370617171,1752076255081,-460.0,0.00019178,2]
[370617173,1752076255090,-460.0,0.00019178,2]
[370617175,1752076255100,-4423.78,0.00019178,2]
[370617177,1752076255109,-460.0,0.00019178,2]
[370617179,1752076255119,-460.0,0.00019178,2]
[370617181,1752076255128,-837.62,0.00019178,2]
[370617183,1752076255138,-1581.6,0.00019178,2]
[370617185,1752076255148,-219.49388162,0.00019178,2]
[370617187,1752076255158,-460.0,0.00019178,2]
[370617189,1752076255167,-460.0,0.00019178,2]
[370617191,1752076255177,-1516.48,0.00019178,2]
[370617193,1752076255187,-573.49,0.00019178,2]
[370617195,1752076255196,-460.0,0.00019178,2]
[370617197,1752076255206,-460.0,0.00019178,2]
[370617199,1752076255215,-461.0122167,0.00019178,2]
[370617201,1752076255226,-460.0,0.00019178,2]
[370617203,1752076255236,-460.0,0.00019178,2]
[370617205,1752076255246,-460.0,0.00019178,2]
[370617207,1752076255255,-460.0,0.00019178,2]
[370617209,1752076255265,-460.0,0.00019178,2]
[370617211,1752076255275,-460.0,0.00019178,2]
[370617213,1752076255284,-460.0,0.00019178,2]
[370617215,1752076255294,-460.0,0.00019178,2]
[370617217,1752076255304,-460.0,0.00019178,2]
[370617219,1752076255314,-460.0,0.00019178,2]
[370617221,1752076255323,-460.0,0.00019178,2]
[370617223,1752076255333,-731.06,0.00019178,2]
[370617225,1752076255344,-460.0,0.00019178,2]
[370617227,1752076255353,-460.0,0.00019178,2]
[370617230,1752076255363,-460.0,0.00019178,2]
[370617231,1752076255373,-547.99,0.00019178,2]
[370617234,1752076255382,-460.0,0.00019178,2]
[370617236,1752076255392,-460.0,0.00019178,2]
[370617238,1752076255403,-460.0,0.00019178,2]
[370617240,1752076255413,-460.0,0.00019178,2]
[370617242,1752076255422,-460.0,0.00019178,2]
[370617244,1752076255432,-994.4,0.00019178,2]
[370617246,1752076255442,-434.1661802,0.00019178,2]
[370617248,1752076255451,-460.0,0.00019178,2]
[370617250,1752076255460,-460.0,0.00019178,2]
[370617251,1752076255470,-460.0,0.00019178,2]
[370617253,1752076255480,-460.0,0.00019178,2]
[370617255,1752076255489,-460.0,0.00019178,2]
[370617257,1752076255498,-196.91966483,0.00019178,2]
[370617259,1752076255507,-460.0,0.00019178,2]
[370617262,1752076255522,-460.0,0.00019178,2]
[370617264,1752076255532,-753.16,0.00019178,2]
[370617266,1752076255542,-460.0,0.00019178,2]
[370617268,1752076255551,-689.64,0.00019178,2]
[370617270,1752076255561,-521.74760961,0.00019178,2]
[370617272,1752076255570,-460.0,0.00019178,2]
[370617273,1752076255580,-460.0,0.00019178,2]
[370617276,1752076255589,-460.0,0.00019178,2]
[370617278,1752076255599,-415.66545713,0.00019178,2]
[370617280,1752076255608,-461.55853342,0.00019178,2]
[370617282,1752076255618,-508.58,0.00019178,2]
[370617283,1752076255627,-460.0,0.00019178,2]
[370617286,1752076255637,-474.02656608,0.00019178,2]
[370617288,1752076255647,-460.0,0.00019178,2]
[370617289,1752076255657,-460.0,0.00019178,2]
[370617292,1752076255666,-460.0,0.00019178,2]
[370617293,1752076255675,-460.0,0.00019178,2]
[370617296,1752076255685,-460.0,0.00019178,2]
[370617298,1752076255699,-460.0,0.00019178,2]
[370617299,1752076255709,-540.26,0.00019178,2]
[370617301,1752076255718,-460.0,0.00019178,2]
[370617303,1752076255728,-3033.54,0.00019178,2]
[370617306,1752076255738,-460.0,0.00019178,2]
[370617308,1752076255747,-498.85,0.00019178,2]
[370617310,1752076255757,-2725.77,0.00019178,2]
[370617311,1752076255767,-460.0,0.00019178,2]
[370617313,1752076255776,-460.0,0.00019178,2]
[370617315,1752076255786,-460.0,0.00019178,2]
[370617318,1752076255796,-460.0,0.00019178,2]
[370617320,1752076255806,-460.0,0.00019178,2]
[370617322,1752076255815,-460.0,0.00019178,2]
[370617323,1752076255824,-524.85,0.00019178,2]
[370617325,1752076255834,-460.0,0.00019178,2]
[370617327,1752076255843,-574.77,0.00019178,2]
[370617329,1752076255853,-460.0,0.00019178,2]
[370617331,1752076255862,-460.0,0.00019178,2]
[370617333,1752076255872,-460.0,0.00019178,2]
[370617344,1752076256011,-460.0,0.00019178,2]
[370617345,1752076256027,-151.0,0.00019178,2]
[370617346,1752076256037,-1351.79,0.00019178,2]
[370617347,1752076256047,-460.0,0.00019178,2]
[370617348,1752076256057,-151.0,0.00019178,2]
[370617349,1752076256067,-460.0,0.00019178,2]
[370617350,1752076256077,-460.0,0.00019178,2]
[370617351,1752076256087,-460.0,0.00019178,2]
[370617352,1752076256097,-535.56,0.00019178,2]
[370617353,1752076256107,-543.92,0.00019178,2]
[370617354,1752076256117,-460.0,0.00019178,2]
[370617355,1752076256126,-460.0,0.00019178,2]
[370617356,1752076256136,-460.0,0.00019178,2]
[370617357,1752076256146,-460.0,0.00019178,2]
[370617358,1752076256155,-460.0,0.00019178,2]
[370617359,1752076256164,-588.05,0.00019178,2]
[370617360,1752076256173,-460.0,0.00019178,2]
[370617361,1752076256183,-460.0,0.00019178,2]
[370617362,1752076256192,-623.03,0.00019178,2]
[370617363,1752076256201,-4052.91,0.00019178,2]
[370617364,1752076256210,-460.0,0.00019178,2]
[370617365,1752076256219,-1130.65,0.00019178,2]
[370617366,1752076256229,-1130.65,0.00019178,2]
[370617367,1752076256238,-1130.65,0.00019178,2]
[370617368,1752076256247,-460.0,0.00019178,2]
[370617369,1752076256256,-1130.65,0.00019178,2]
[370617370,1752076256265,-1130.65,0.00019178,2]
[370617371,1752076256275,-1130.65,0.00019178,2]
[370617372,1752076256284,-1050.46,0.00019178,2]
[370617373,1752076256294,-460.0,0.00019178,2]
[370617374,1752076256303,-1130.65,0.00019178,2]
[370617375,1752076256312,-460.0,0.00019178,2]
[370617376,1752076256322,-1130.65,0.00019178,2]
[370617377,1752076256331,-1130.65,0.00019178,2]
[370617378,1752076256341,-1130.65,0.00019178,2]
[370617379,1752076256350,-1130.65,0.00019178,2]
[370617380,1752076256359,-460.0,0.00019178,2]
[370617381,1752076256369,-554.32100919,0.00019178,2]
[370617393,1752076256741,-576.32899081,0.00019178,2]
[370617394,1752076256751,-460.0,0.00019178,2]
[370617395,1752076256761,-460.0,0.00019178,2]
[370617396,1752076256770,-1130.65,0.00019178,2]
[370617397,1752076256780,-1130.65,0.00019178,2]
[370617399,1752076256789,-42.42922992,0.00019178,2]
[370617401,1752076256802,-417.57077008,0.00019178,2]
[370617403,1752076256811,-1130.65,0.00019178,2]
[370617405,1752076256820,-1130.65,0.00019178,2]
[370617407,1752076256830,-1130.65,0.00019178,2]
[370617409,1752076256839,-1130.65,0.00019178,2]
[370617411,1752076256849,-1130.65,0.00019178,2]
[370617413,1752076256858,-1130.65,0.00019178,2]
[370617415,1752076256867,-1130.65,0.00019178,2]
[370617417,1752076256877,-1130.65,0.00019178,2]
[370617419,1752076256886,-1130.65,0.00019178,2]
[370617421,1752076256896,-1130.83383852,0.00019178,2]
[370617423,1752076256905,-724.9,0.00019178,2]
[370617425,1752076256914,-460.0,0.00019178,2]
[370617427,1752076256924,-572.59,0.00019178,2]
[370617428,1752076256933,-446.46240777,0.00019178,2]
[370617429,1752076256943,-460.0,0.00019178,2]
[370617430,1752076256952,-460.0,0.00019178,2]
[370617431,1752076256962,-460.0,0.00019178,2]
[370617432,1752076256971,-460.0,0.00019178,2]
[370617433,1752076256980,-223.87480239,0.00019178,2]
[370617434,1752076256990,-3315.55,0.00019178,2]
[370617435,1752076256999,-460.0,0.00019178,2]
[370617436,1752076257014,-460.0,0.00019178,2]
[370617437,1752076257024,-460.0,0.00019178,2]
[370617438,1752076257033,-460.0,0.00019178,2]
[370617439,1752076257043,-4950.25,0.00019178,2]
[370617440,1752076257054,-460.0,0.00019178,2]
[370617441,1752076257064,-460.0,0.00019178,2]
[370617442,1752076257074,-903.03,0.00019178,2]
[370617443,1752076257084,-460.0,0.00019178,2]
[370617444,1752076257094,-606.75,0.00019178,2]
[370617445,1752076257108,-460.0,0.00019178,2]
[370617446,1752076257126,-460.0,0.00019178,2]
[370617447,1752076257142,-460.0,0.00019178,2]
[370617448,1752076257156,-1397.59,0.00019178,2]
[370617449,1752076257168,-460.0,0.00019178,2]
[370617450,1752076257184,-460.0,0.00019178,2]
[370617451,1752076257199,-460.0,0.00019178,2]
[370617452,1752076257213,-460.0,0.00019178,2]
[370617453,1752076257228,-460.0,0.00019178,2]
[370617454,1752076257244,-461.2071492,0.00019178,2]
[370617455,1752076257260,-460.0,0.00019178,2]
[370617456,1752076257273,-460.0,0.00019178,2]
[370617457,1752076257289,-798.03,0.00019178,2]
[370617458,1752076257303,-460.0,0.00019178,2]
[370617459,1752076257318,-630.81,0.00019178,2]
[370617460,1752076257332,-460.0,0.00019178,2]
[370617461,1752076257345,-748.17,0.00019178,2]
[370617462,1752076257356,-460.0,0.00019178,2]
[370617463,1752076257370,-460.0,0.00019178,2]
[370617464,1752076257383,-460.0,0.00019178,2]
[370617465,1752076257397,-460.0,0.00019178,2]
[370617466,1752076257411,-460.0,0.00019178,2]
[370617467,1752076257426,-460.0,0.00019178,2]
[370617468,1752076257440,-460.0,0.00019178,2]
[370617469,1752076257456,-460.0,0.00019178,2]
[370617470,1752076257467,-888.73,0.00019178,2]
[370617471,1752076257478,-460.91132024,0.00019178,2]
[370617472,1752076257491,-460.0,0.00019178,2]
[370617473,1752076257506,-460.0,0.00019178,2]
[370617474,1752076257520,-460.0,0.00019178,2]
[370617475,1752076257532,-651.66,0.00019178,2]
[370617476,1752076257545,-460.0,0.00019178,2]
[370617477,1752076257561,-461.49113517,0.00019178,2]
[370617478,1752076257572,-460.0,0.00019178,2]
[370617479,1752076257586,-682.96,0.00019178,2]
[370617480,1752076257599,-460.0,0.00019178,2]
[370617481,1752076257612,-460.0,0.00019178,2]
[370617482,1752076257631,-558.48,0.00019178,2]
[370617483,1752076257645,-460.0,0.00019178,2]
[370617484,1752076257658,-500.0,0.00019178,2]
[370617485,1752076257672,-460.0,0.00019178,2]
[370617486,1752076257685,-460.0,0.00019178,2]
[370617487,1752076257703,-460.0,0.00019178,2]
[370617488,1752076257718,-460.0,0.00019178,2]
[370617489,1752076257733,-460.0,0.00019178,2]
[370617490,1752076257745,-460.0,0.00019178,2]
[370617491,1752076257758,-2815.86,0.00019178,2]
[370617492,1752076257772,-521.96,0.00019178,2]
[370617493,1752076257784,-460.0,0.00019178,2]
[370617494,1752076257795,-460.0,0.00019178,2]
[370617495,1752076257806,-460.0,0.00019178,2]
[370617496,1752076257818,-1499.33,0.00019178,2]
[370617497,1752076257830,-460.0,0.00019178,2]
[370617498,1752076257842,-383.21838934,0.00019178,2]
[370617499,1752076257853,-77.81666729,0.00019178,2]
[370617500,1752076257869,-136.53375921,0.00019178,2]
[370617501,1752076257881,-460.0,0.00019178,2]
[370617502,1752076257894,-460.0,0.00019178,2]
[370617503,1752076257905,-460.0,0.00019178,2]
[370617504,1752076257917,-10.15571378,0.00019178,2]
[370617505,1752076257949,-449.84428622,0.00019178,2]
[370617506,1752076257960,-3391.38,0.00019178,2]
[370617507,1752076257972,-460.0,0.00019178,2]
[370617508,1752076257983,-460.0,0.00019178,2]
[370617509,1752076257994,-460.0,0.00019178,2]
[370617510,1752076258006,-460.0,0.00019178,2]
[370617511,1752076258017,-759.1,0.00019178,2]
[370617513,1752076258029,-460.0,0.00019178,2]
[370617515,1752076258040,-460.0,0.00019178,2]
[370617517,1752076258052,-460.0,0.00019178,2]
[370617519,1752076258064,-460.0,0.00019178,2]
[370617521,1752076258076,-460.0,0.00019178,2]
[370617523,1752076258087,-501.97461645,0.00019178,2]
[370617526,1752076258099,-151.0,0.00019178,2]
[370617528,1752076258111,-460.0,0.00019178,2]
[370617530,1752076258123,-460.0,0.00019178,2]
[370617532,1752076258134,-460.0,0.00019178,2]
[370617534,1752076258146,-460.0,0.00019178,2]
[370617536,1752076258158,-461.02417692,0.00019178,2]
[370617538,1752076258170,-460.0,0.00019178,2]
[370617541,1752076258181,-534.55,0.00019178,2]
[370617543,1752076258193,-460.0,0.00019178,2]
[370617545,1752076258204,-460.0,0.00019178,2]
[370617547,1752076258216,-460.0,0.00019178,2]
[370617549,1752076258229,-460.0,0.00019178,2]
[370617551,1752076258240,-460.0,0.00019178,2]
[370617554,1752076258252,-460.0,0.00019178,2]
[370617556,1752076258263,-460.0,0.00019178,2]
[370617558,1752076258274,-460.0,0.00019178,2]
[370617560,1752076258285,-740.4,0.00019178,2]
[370617562,1752076258297,-460.0,0.00019178,2]
[370617564,1752076258308,-460.0,0.00019178,2]
[370617567,1752076258319,-460.0,0.00019178,2]
[370617569,1752076258331,-460.0,0.00019178,2]
[370617571,1752076258342,-905.09,0.00019178,2]
[370617573,1752076258353,-2328.56,0.00019178,2]
[370617575,1752076258365,-460.0,0.00019178,2]
[370617577,1752076258376,-943.57,0.00019178,2]
[370617580,1752076258387,-535.59,0.00019178,2]
[370617582,1752076258398,-460.0,0.00019178,2]
[370617584,1752076258413,-460.0,0.00019178,2]
[370617586,1752076258427,-460.0,0.00019178,2]
[370617588,1752076258438,-460.0,0.00019178,2]
[370617591,1752076258450,-460.0,0.00019178,2]
[370617593,1752076258461,-460.0,0.00019178,2]
[370617595,1752076258472,-460.0,0.00019178,2]
[370617597,1752076258487,-460.0,0.00019178,2]
[370617599,1752076258498,-460.0,0.00019178,2]
[370617601,1752076258510,-2929.07,0.00019178,2]
[370617602,1752076258521,-460.0,0.00019178,2]
[370617604,1752076258532,-460.0,0.00019178,2]
[370617606,1752076258544,-719.38,0.00019178,2]
[370617608,1752076258555,-460.0,0.00019178,2]
[370617610,1752076258566,-460.0,0.00019178,2]
[370617612,1752076258578,-1098.91,0.00019178,2]
[370617615,1752076258590,-460.0,0.00019178,2]
[370617617,1752076258601,-460.0,0.00019178,2]
[370617619,1752076258612,-460.0,0.00019178,2]
[370617621,1752076258623,-151.0,0.00019178,2]
[370617623,1752076258635,-23886.78,0.00019178,2]
[370617626,1752076258647,-460.0,0.00019178,2]
[370617628,1752076258659,-460.0,0.00019178,2]
[370617630,1752076258670,-460.0,0.00019178,2]
[370617632,1752076258682,-460.0,0.00019178,2]
[370617634,1752076258696,-460.0,0.00019178,2]
[370617636,1752076258708,-742.16,0.00019178,2]
[370617639,1752076258719,-460.0,0.00019178,2]
[370617641,1752076258731,-460.0,0.00019178,2]
[370617643,1752076258743,-1490.44,0.00019178,2]
[370617645,1752076258754,-460.0,0.00019178,2]
[370617647,1752076258765,-151.0,0.00019178,2]
[370617649,1752076258777,-151.0,0.00019178,2]
[370617652,1752076258788,-151.0,0.00019178,2]
[370617654,1752076258798,-151.0,0.00019178,2]
[370617656,1752076258810,-151.0,0.00019178,2]
[370617658,1752076258821,-329.64478,0.00019178,2]
[370617661,1752076258834,-666.0,0.00019178,2]
[370617663,1752076258846,-649.0,0.00019186,2]
[370617665,1752076258859,-151.0,0.000192,2]
[370617668,1752076258872,-723.0,0.00019205,2]
[370617670,1752076258886,-500.0,0.00019205,2]
[370617672,1752076258899,-151.0,0.00019205,2]
[370617695,1752076259168,-151.0,0.00019205,2]
[370617698,1752076259179,-151.0,0.00019205,2]
[370617700,1752076259189,-611.60810597,0.00019205,2]
[370617701,1752076259198,-151.0,0.00019205,2]
[370617703,1752076259208,-151.0,0.00019205,2]
[370617705,1752076259218,-151.0,0.00019205,2]
[370617707,1752076259228,-206.63510145,0.00019205,2]
[370617709,1752076259238,-649.0,0.00019208,2]
[370617711,1752076259247,-151.0,0.00019215,2]
[370617713,1752076259256,-151.0,0.00019217,2]
[370617715,1752076259266,-2945.29427482,0.00019221,2]
[370617717,1752076259276,-760.0729,0.00019221,2]
[370617719,1752076259285,-649.0,0.00019222,2]
[370617721,1752076259296,-649.0,0.00019225,2]
[370617723,1752076259306,-723.0,0.00019233,2]
[370617725,1752076259316,-500.0,0.00019233,2]
[370617727,1752076259325,-151.0,0.00019233,2]
[370617729,1752076259336,-151.0,0.00019233,2]
[370617731,1752076259346,-151.0,0.00019233,2]
[370617733,1752076259355,-151.0,0.00019233,2]
[370617735,1752076259365,-151.0,0.00019233,2]
[370617737,1752076259375,-1749.0,0.00019234,2]
[370617740,1752076259384,-1749.0,0.00019234,2]
[370617741,1752076259394,-1749.0,0.00019234,2]
[370617744,1752076259404,-1749.0,0.00019234,2]
[370617745,1752076259413,-1749.0,0.00019234,2]
[370617747,1752076259423,-1743.0,0.00019234,2]
[370617749,1752076259432,-307.09943947,0.00019234,2]
[370617751,1752076259441,-1776.38899148,0.00019234,2]
[370617753,1752076259451,-5524.98877515,0.00019242,2]
[370617756,1752076259461,-1749.0,0.0001925,2]
[370617758,1752076259470,-1749.0,0.0001925,2]
[370617759,1752076259480,-1749.0,0.0001925,2]
[370617761,1752076259491,-1749.0,0.0001925,2]
[370617764,1752076259502,-1749.0,0.0001925,2]
[370617766,1752076259512,-481.84085841,0.0001925,2]
[370617768,1752076259522,-723.0,0.0001926,2]
[370617770,1752076259531,-500.0,0.0001926,2]
[370617772,1752076259540,-248.08135577,0.0001926,2]
[370617774,1752076259549,-219.59722069,0.0001926,2]
[370617775,1752076259559,-151.0,0.0001926,2]
[370617777,1752076259568,-151.0,0.0001926,2]
[370617779,1752076259578,-723.0,0.00019288,2]
[370617781,1752076259588,-500.0,0.00019288,2]
[370617784,1752076259598,-151.0,0.00019288,2]
[370617785,1752076259608,-649.0,0.00019299,2]
[370617788,1752076259619,-151.0,0.000193,2]
[370617790,1752076259628,-151.0,0.000193,2]
[370617792,1752076259637,-151.0,0.000193,2]
[370617793,1752076259648,-151.0,0.000193,2]
[370617796,1752076259657,-723.0,0.00019315,2]
[370617798,1752076259668,-500.0,0.00019315,2]
[370617800,1752076259677,-179.70857585,0.00019315,2]
[370617801,1752076259687,-2576.9611553,0.00019319,2]
[370617804,1752076259701,-649.0,0.0001932,2]
[370617806,1752076259710,-30965.96267705,0.00019329,2]
[370617808,1752076259720,-723.0,0.00019342,2]
[370617810,1752076259730,-500.0,0.00019342,2]
[370617811,1752076259740,-5000.0,0.00019347,2]
[370617813,1752076259749,-168.0,0.0001936,2]
[370617816,1752076259759,-2005.89056735,0.00019364,2]
[370617817,1752076259770,-649.0,0.00019365,2]
[370617820,1752076259782,-517.0,0.00019366,2]
[370617822,1752076259792,-723.0,0.0001937,2]
[370617823,1752076259801,-500.0,0.0001937,2]
[370617825,1752076259810,-516.80698713,0.00019383,2]
[370617827,1752076259819,-3972.72913075,0.00019383,2]
[370617829,1752076259831,-649.0,0.00019391,2]
[370617832,1752076259841,-723.0,0.00019397,2]
[370617834,1752076259850,-420.18536789,0.00019397,2]
[370617835,1752076259860,-50000.0,0.00019398,5]
[370617837,1752076259869,-3000.0,0.000194,2]
[370617839,1752076259878,-151.0,0.000194,2]
[370617841,1752076259888,-151.0,0.000194,2]
[370617843,1752076259898,-3000.0,0.0001941,2]
[370617845,1752076259908,-3000.0,0.0001942,2]
[370617847,1752076259917,-1000.0,0.00019421,2]
[370617849,1752076259927,-1008.3300238,0.00019421,2]
[370617851,1752076259936,-500.0,0.00019421,2]
[370617853,1752076259947,-1094.0908858,0.00019421,2]
[370617855,1752076259956,-605.61594054,0.00019421,2]
[370617857,1752076259966,-841.91460913,0.00019421,2]
[370617859,1752076259976,-1000.0,0.00019421,2]
[370617861,1752076259986,-1000.0,0.00019421,2]
[370617864,1752076259996,-500.0,0.00019421,2]
[370617866,1752076260006,-1000.0,0.00019421,2]
[370617868,1752076260016,-1017.94431984,0.00019421,2]
[370617870,1752076260026,-1000.0,0.00019421,2]
[370617872,1752076260037,-500.0,0.00019421,2]
[370617874,1752076260047,-1000.0,0.00019421,2]
[370617876,1752076260057,-1000.0,0.00019421,2]
[370617878,1752076260066,-1000.0,0.00019421,2]
[370617880,1752076260076,-1000.0,0.00019421,2]
[370617882,1752076260087,-1000.0,0.00019421,2]
[370617884,1752076260096,-1000.0,0.00019421,2]
[370617886,1752076260106,-500.0,0.00019421,2]
[370617888,1752076260116,-1000.0,0.00019421,2]
[370617890,1752076260126,-624.88944406,0.00019421,2]
[370617892,1752076260135,-1000.0,0.00019421,2]
[370617894,1752076260145,-1000.0,0.00019421,2]
[370617896,1752076260154,-177.08628388,0.00019421,2]
[370617898,1752076260163,-500.0,0.00019421,2]
[370617900,1752076260173,-500.0,0.00019421,2]
[370617902,1752076260182,-500.0,0.00019421,2]
[370617904,1752076260192,-723.0,0.00019425,2]
[370617906,1752076260202,-153.7377011,0.00019425,2]
[370617908,1752076260211,-153.0,0.00019425,2]
[370617910,1752076260220,-153.0,0.00019425,2]
[370617912,1752076260230,-1876.9293231,0.0001943,2]
[370617914,1752076260240,-3000.0,0.0001943,2]
[370617916,1752076260249,-3000.0,0.0001944,2]
[370617918,1752076260259,-500.0,0.00019446,2]
[370617920,1752076260269,-3000.0,0.0001945,2]
[370617922,1752076260279,-723.0,0.00019452,2]
[370617924,1752076260288,-400.40905759,0.00019452,2]
[370617926,1752076260298,-460.0,0.00019452,2]
[370617928,1752076260309,-460.0,0.00019452,2]
[370617930,1752076260319,-461.68689152,0.00019452,2]
[370617932,1752076260329,-460.0,0.00019452,2]
[370617934,1752076260338,-460.0,0.00019452,2]
[370617936,1752076260348,-442.04519372,0.00019452,2]
[370617937,1752076260358,-460.0,0.00019452,2]
[370617939,1752076260368,-331.19088156,0.00019452,2]
[370617941,1752076260378,-460.0,0.00019452,2]
[370617943,1752076260388,-460.0,0.00019452,2]
[370617945,1752076260399,-460.0,0.00019452,2]
[370617947,1752076260410,-460.0,0.00019452,2]
[370617949,1752076260419,-460.0,0.00019452,2]
[370617951,1752076260429,-460.0,0.00019452,2]
[370617953,1752076260438,-461.84945546,0.00019452,2]
[370617955,1752076260447,-460.0,0.00019452,2]
[370617957,1752076260457,-460.0,0.00019452,2]
[370617959,1752076260466,-460.0,0.00019452,2]
[370617961,1752076260475,-460.0,0.00019452,2]
[370617963,1752076260485,-460.0,0.00019452,2]
[370617965,1752076260494,-460.0,0.00019452,2]
[370617967,1752076260504,-460.0,0.00019452,2]
[370617969,1752076260514,-460.0,0.00019452,2]
[370617971,1752076260524,-460.0,0.00019452,2]
[370617973,1752076260533,-460.0,0.00019452,2]
[370617975,1752076260542,-460.0,0.00019452,2]
[370617977,1752076260552,-460.0,0.00019452,2]
[370617979,1752076260561,-460.0,0.00019452,2]
[370617981,1752076260571,-460.0,0.00019452,2]
[370617983,1752076260580,-462.14723606,0.00019452,2]
[370617985,1752076260590,-460.0,0.00019452,2]
[370617987,1752076260599,-460.0,0.00019452,2]
[370617989,1752076260608,-460.0,0.00019452,2]
[370617991,1752076260617,-460.0,0.00019452,2]
[370617993,1752076260626,-460.0,0.00019452,2]
[370617995,1752076260636,-460.0,0.00019452,2]
[370617997,1752076260646,-495.86771654,0.00019452,2]
[370617999,1752076260658,-460.0,0.00019452,2]
[370618001,1752076260667,-460.0,0.00019452,2]
[370618003,1752076260677,-460.0,0.00019452,2]